[Event "Dutch Meesterklasse 2024-25"]
[Site "Netherlands"]
[Date "2024.11.09"]
[Round "3.10"]
[White "Wemmers, Xander"]
[Black "Van der Hagen, Loek"]
[Result "1/2-1/2"]
[ECO "D38"]
[WhiteElo "2342"]
[BlackElo "2306"]
[Annotator "ChessBase"]
[PlyCount "103"]
[EventDate "2024.09.21"]
[EventType "team-tourn"]
[EventCountry "NED"]
[SourceTitle "playchess.com"]
[Source "ChessBase"]
[SourceQuality "1"]
[TimeControl "40/5400+30:1800+30"]

1. d4 {[%emt 0:00:04]} Nf6 {[%emt 0:00:05]} 2. c4 {[%emt 0:00:22]} e6 {[%emt 0:00:25]} 3. Nf3 {[%emt 0:00:08]} d5 {[%emt 0:00:16]} 4. Nc3 {[%emt 0:00:10]} Bb4 {[%emt 0:00:10]} 5. cxd5 {[%emt 0:00:05]} exd5 {[%emt 0:00:15]} 6. Bg5 {[%emt 0:00:07]} h6 {[%emt 0:00:17]} 7. Bh4 {[%emt 0:00:06]} g5 {[%emt 0:01:17]} 8. Bg3 {[%emt 0:00:20]} Ne4 {[%emt 0:00:06]} 9. Nd2 {[%emt 0:07:54]} Nxg3 {[%emt 0:00:41]} 10. hxg3 {[%emt 0:00:36]} c6 {[%emt 0:00:11]} 11. Qc2 {[%emt 0:00:48]} Be6 {[%emt 0:08:41]} 12. O-O-O {[%emt 0:01:43]} Qf6 {[%emt 0:07:04]} 13. e4 {[%emt 0:07:52]} Bxc3 {[%emt 0:26:46]} 14. Qxc3 {[%emt 0:01:17]} Qxf2 {[%emt 0:08:22]} 15. exd5 {[%emt 0:04:05]} Bxd5 {[%emt 0:12:26]} 16. Bc4 {[%emt 0:11:03]} Nd7 {[%emt 0:18:39]} 17. Rde1+ {[%emt 0:00:29]} Kd8 {[%emt 0:06:42]} 18. Ne4 {[%emt 0:14:06]} Bxe4 {[%emt 0:01:07]} 19. Rxe4 {[%emt 0:00:12]} Kc7 {[%emt 0:03:15]} 20. Rhe1 {[%emt 0:02:37]} Rad8 {[%emt 0:01:24]} 21. Re7 {[%emt 0:01:47]} Rhf8 {[%emt 0:00:54]} 22. d5 {[%emt 0:14:02]} Qc5 {[%emt 0:00:16]} 23. b4 {[%emt 0:09:50]} Qd6 {[%emt 0:00:00]} 24. Bb3 {[%emt 0:02:05]} Kb8 {[%emt 0:01:53]} 25. dxc6 {[%emt 0:00:46]} bxc6 {[%emt 0:01:10]} 26. Rxf7 {[%emt 0:14:00]} Rxf7 {[%emt 0:00:16]} 27. Bxf7 {[%emt 0:00:07]} Nb6 {[%emt 0:00:15]} 28. a3 Rd7 {[%emt 0:01:02]} 29. Bb3 {[%emt 0:01:13]} Kb7 {[%emt 0:00:27]} 30. Re6 {[%emt 0:01:04]} Qc7 {[%emt 0:00:32]} 31. Rxh6 {[%emt 0:01:12]} Rh7 {[%emt 0:00:29]} 32. Rg6 {[%emt 0:00:43]} Rh1+ {[%emt 0:00:30]} 33. Kb2 {[%emt 0:00:33]} Rh7 {[%emt 0:00:33]} 34. Rxg5 {[%emt 0:01:11]} Re7 {[%emt 0:00:25]} 35. a4 {[%emt 0:01:03]} Qd7 {[%emt 0:00:35]} 36. a5 {[%emt 0:01:32]} Nc8 {[%emt 0:00:30]} 37. Ba4 {[%emt 0:01:25]} Re2+ {[%emt 0:00:29]} 38. Ka3 {[%emt 0:00:15]} Qe6 {[%emt 0:00:29]} 39. Rg7+ {[%emt 0:01:09]} Kb8 {[%emt 0:00:23]} 40. Bb3 {[%emt 0:00:10]} Qd6 {[%emt 0:00:39]} 41. Qf3 {[%emt 0:11:28]} Re5 {[%emt 0:05:36]} 42. Qf4 {[%emt 0:11:17]} Rxa5+ {[%emt 0:02:25]} 43. Kb2 {[%emt 0:00:06]} Re5 {[%emt 0:00:18]} 44. Rd7 {[%emt 0:01:28]} Qxd7 {[%emt 0:10:55]} 45. Qxe5+ {[%emt 0:00:07]} Kb7 {[%emt 0:00:06]} 46. Qf4 {[%emt 0:00:57]} Qd3 {[%emt 0:01:44]} 47. g4 {[%emt 0:01:28]} Nd6 {[%emt 0:00:30]} 48. g5 {[%emt 0:05:18]} Nb5 {[%emt 0:03:11]} 49. Qf7+ {[%emt 0:00:24]} Kb6 {[%emt 0:00:20]} 50. Qf2+ {[%emt 0:00:51]} Kb7 {[%emt 0:00:07]} 51. Qf7+ {[%emt 0:00:07]} Kb6 {[%emt 0:00:08]} 52. Qf2+ {[%emt 0:00:08]} 1/2-1/2

[Event "Dutch Meesterklasse 2024-25"]
[Site "Netherlands"]
[Date "2024.11.23"]
[Round "4.5"]
[White "Kunin, Vitaly"]
[Black "Nijboer, Friso"]
[Result "1/2-1/2"]
[ECO "E73"]
[WhiteElo "2537"]
[BlackElo "2444"]
[Annotator "RC"]
[PlyCount "188"]
[EventDate "2024.09.21"]
[EventType "team-tourn"]
[EventCountry "NED"]
[SourceTitle "playchess.com"]
[Source "ChessBase"]
[SourceQuality "1"]
[TimeControl "40/5400+30:1800+30"]

1. d4 {[%emt 0:00:28]} Nf6 {[%emt 0:00:14]} 2. c4 {[%emt 0:00:47]} g6 {[%emt 0:00:05]} 3. Nc3 {[%emt 0:00:09]} Bg7 {[%emt 0:00:05]} 4. e4 {[%emt 0:00:09]} d6 {[%emt 0:00:06]} 5. Be2 {[%emt 0:00:50]} O-O {[%emt 0:00:30]} 6. Be3 {[%emt 0:00:42]} c5 {[%emt 0:05:48]} 7. dxc5 {[%emt 0:02:11]} Qa5 {[%emt 0:06:15]} 8. f3 {[%emt 0:01:16]} dxc5 {[%emt 0:04:07]} 9. e5 {[%emt 0:00:20]} Ne8 {[%emt 0:20:14]} 10. f4 {[%emt 0:01:39]} Nc6 {[%emt 0:03:23]} 11. Nf3 {[%emt 0:00:40]} Be6 {[%emt 0:26:58]} 12. O-O {[%emt 0:02:48]} Rd8 {[%emt 0:02:23]} 13. Nd5 {[%emt 0:04:39]} Rd7 {[%emt 0:07:01]} 14. Qb3 {[%emt 0:04:09]} Nc7 {[%emt 0:02:07]} 15. Nxc7 {[%emt 0:12:24]} Rxc7 {[%emt 0:02:38]} 16. Rad1 {[%emt 0:07:00]} f6 {[%emt 0:02:46]} 17. Bf2 {[%emt 0:15:47]} Qb4 {[%emt 0:08:58]} 18. Qxb4 {[%emt 0:11:14]} Nxb4 {[%emt 0:00:38]} 19. a3 {[%emt 0:00:43]} Nc6 {[%emt 0:00:05]} 20. exf6 {[%emt 0:03:49]} Bxf6 {[%emt 0:00:06]} 21. Bxc5 {[%emt 0:05:19]} Na5 {[%emt 0:01:53]} 22. Bxa7 {[%emt 0:04:19]} Nxc4 {[%emt 0:00:49]} 23. Nd4 {[%emt 0:01:58]} Bf7 {[%emt 0:00:05]} 24. Nb5 {[%emt 0:01:48]} Rcc8 {[%emt 0:01:05]} 25. b3 {[%emt 0:01:44]} Nb2 {[%emt 0:01:48]} 26. Rd2 {[%emt 0:03:21]} Rfd8 {[%emt 0:00:02]} 27. Bd4 {[%emt 0:00:42]} Be8 {[%emt 0:00:19]} 28. Rxb2 {[%emt 0:02:48]} Rxd4 {[%emt 0:00:09]} 29. Ra2 {[%emt 0:00:56]} Re4 {[%emt 0:01:48]} 30. Bc4+ {[%emt 0:02:35]} Kg7 {[%emt 0:00:23]} 31. a4 {[%emt 0:01:13]} Bxb5 {[%emt 0:00:42]} 32. axb5 {[%emt 0:00:44]} Bd4+ {[%emt 0:01:11]} 33. Kh1 {[%emt 0:00:06]} b6 {[%emt 0:00:09]} 34. g3 {[%emt 0:00:12]} Bc5 {[%emt 0:00:35]} 35. Rd1 {[%emt 0:00:44]} Rd4 {[%emt 0:00:13]} 36. Rxd4 {[%emt 0:01:23]} Bxd4 {[%emt 0:00:02]} 37. Re2 {[%emt 0:01:27]} Bc5 {[%emt 0:00:17]} 38. Kg2 {[%emt 0:00:10]} Rd8 {[%emt 0:01:06]} 39. Kf3 {[%emt 0:00:18]} Kf8 {[%emt 0:02:11]} 40. h4 {[%emt 0:00:46]} Ra8 {[%emt 0:00:29]} 41. h5 {[%emt 0:31:51]} gxh5 {[%emt 0:02:07]} 42. Rh2 {[%emt 0:00:00]} Kg7 {[%emt 0:00:40]} 43. Rxh5 {[%emt 0:00:00]} h6 {[%emt 0:00:04]} 44. Re5 {[%emt 0:00:00]} Bd6 {[%emt 0:00:49]} 45. Re2 {[%emt 0:00:00]} Rf8 {[%emt 0:06:31]} 46. Ke4 {[%emt 0:00:00]} Rf6 {[%emt 0:00:39]} 47. Ra2 {[%emt 0:00:00]} Bc5 {[%emt 0:07:17]} 48. Bd5 {[%emt 0:00:00]} Rg6 {[%emt 0:00:39]} 49. Kf3 {[%emt 0:00:00]} Rd6 {[%emt 0:00:12]} 50. Bc4 {[%emt 0:00:00]} Rd8 {[%emt 0:00:11]} 51. Kg4 {[%emt 0:00:00]} Bb4 {[%emt 0:02:09]} 52. Re2 {[%emt 0:00:00]} Rf8 {[%emt 0:00:55]} 53. Re4 {[%emt 0:00:00]} Bd6 {[%emt 0:00:22]} 54. Bd5 {[%emt 0:00:00]} Rf6 {[%emt 0:03:02]} 55. Ra4 {[%emt 0:00:00]} Bc5 {[%emt 0:04:42]} 56. Ra7 {[%emt 0:00:00]} Rf8 {[%emt 0:00:17]} 57. Kf3 {[%emt 0:00:00]} Kf6 {[%emt 0:01:08]} 58. Rc7 {[%emt 0:00:00]} Rd8 {[%emt 0:00:24]} 59. Ke4 {[%emt 0:00:00]} Bf2 {[%emt 0:03:56]} 60. g4 {[%emt 0:00:00]} e6 {[%emt 0:02:27]} 61. Bc4 {[%emt 0:00:00]} Bc5 {[%emt 0:00:08]} 62. Kf3 {[%emt 0:01:38]} Rd4 {[%emt 0:01:03]} 63. Rc6 {[%emt 0:01:38]} Bd6 {[%emt 0:01:38]} 64. Ke3 {[%emt 0:01:26]} Rd1 {[%emt 0:00:13]} 65. Ke2 {[%emt 0:00:34]} Rd4 {[%emt 0:00:10]} 66. Rxb6 {[%emt 0:00:25]} Ke7 {[%emt 0:00:33]} 67. Rb7+ {[%emt 0:01:03]} Kf6 {[%emt 0:00:05]} 68. Rd7 {[%emt 0:01:03]} Bc5 {[%emt 0:00:41]} 69. Rc7 {[%emt 0:00:30]} Bd6 {[%emt 0:00:30]} 70. Rc6 {[%emt 0:02:39]} Bxf4 {[%emt 0:00:08]} 71. Rxe6+ {[%emt 0:00:22]} Kg5 {[%emt 0:00:03]} 72. Kf3 {[%emt 0:01:03]} Rd6 {[%emt 0:01:25]} 73. Re7 {[%emt 0:01:34]} Rf6 {[%emt 0:00:08]} 74. Rg7+ {[%emt 0:00:34]} Kh4 {[%emt 0:00:28]} 75. Ke4 {[%emt 0:02:40]} Bg5 {[%emt 0:00:24]} 76. Ke5 {[%emt 0:02:24]} Rf8 {[%emt 0:00:30]} 77. Rf7 {[%emt 0:01:40]} Rxf7 {[%emt 0:01:29]} 78. Bxf7 {[%emt 0:00:07]} Kxg4 {[%emt 0:00:04]} 79. b6 {[%emt 0:00:33]} Kf3 {[%emt 0:00:07]} 80. b4 {[%emt 0:01:17]} Ke3 {[%emt 0:00:37]} 81. b7 {[%emt 0:00:51]} Bf4+ {[%emt 0:00:09]} 82. Kd5 {[%emt 0:00:27]} Kd3 {[%emt 0:00:42]} 83. b5 {[%emt 0:00:52]} Kc3 {[%emt 0:00:06]} 84. Kc5 {[%emt 0:00:15]} Bg3 {[%emt 0:00:49]} 85. Bh5 {[%emt 0:00:11]} Kb3 {[%emt 0:00:28]} 86. Bd1+ {[%emt 0:00:06]} Ka3 {[%emt 0:00:45]} 87. Kb6 {[%emt 0:01:18]} Kb4 {[%emt 0:00:20]} 88. Be2 {[%emt 0:00:11]} Bb8 {[%emt 0:01:07]} 89. Kc6 {[%emt 0:00:07]} Ka5 {[%emt 0:00:20]} 90. Kd7 {[%emt 0:01:22]} Kb6 {[%emt 0:00:13]} 91. Kc8 {[%emt 0:00:05]} Bf4 {[%emt 0:00:20]} 92. b8=Q+ {[%emt 0:00:29]} Bxb8 {[%emt 0:00:04]} 93. Kxb8 {[%emt 0:00:07]} h5 {[%emt 0:00:03]} 94. Bxh5 {[%emt 0:00:56]} Kxb5 {[%emt 0:00:38]} 1/2-1/2